bitfinex/quotes_SOLUSD_20250228
["timestamp","ask_amount","ask_price","bid_price","bid_amount"]
[1740723801376,0.14216157,127.26,127.16,0.063]
[1740723801575,18.79181043,127.24,127.17,0.08428428]
[1740723801780,18.79181043,127.22,127.16,0.063]
[1740723801985,0.14216157,127.19,127.18,20.0]
[1740723802174,0.14216157,127.19,127.16,0.063]
[1740723803576,0.14216157,127.19,127.15,12.24758718]
[1740723803775,0.14216157,127.19,127.06,6.2863]
[1740723804591,0.14216157,127.19,127.09,20.0]
[1740723804789,146.3876,127.25,127.13,20.0]
[1740723805176,143.32,127.25,127.13,20.0]
[1740723805673,18.64964886,127.24,127.13,20.0]
[1740723805992,0.14216157,127.23,127.13,20.0]
[1740723806207,82.8,127.22,127.13,20.0]
[1740723806413,82.8,127.21,127.13,20.0]
[1740723806588,0.14216157,127.2,127.13,20.0]
[1740723807607,82.8,127.21,127.13,20.0]
[1740723807991,82.8,127.24,127.13,101.6]
[1740723808201,82.8,127.23,127.13,20.0]
[1740723808403,18.79181043,127.21,127.13,20.0]
[1740723809104,18.79181043,127.19,127.06,87.8863]
[1740723809317,18.79181043,127.17,127.06,6.2863]
[1740723809810,18.79181043,127.17,127.09,20.0]
[1740723810007,82.8,127.16,127.09,20.0]
[1740723810216,82.8,127.19,127.09,20.0]
[1740723810993,82.8,127.19,127.11,20.0]
[1740723811312,82.8,127.19,127.09,81.6]
[1740723811611,0.14216157,127.18,127.12,20.0]
[1740723812010,18.79181043,127.16,127.06,87.8863]
[1740723812215,0.14216157,127.14,127.06,6.2863]
[1740723813114,0.14216157,127.14,127.09,20.0]
[1740723813304,82.8,127.21,127.09,101.6]
[1740723813504,82.8,127.21,127.13,20.0]
[1740723814016,18.79181043,127.2,127.13,20.0]
[1740723814510,18.79181043,127.18,127.13,20.0]
[1740723814715,82.8,127.17,127.13,20.0]
[1740723815218,82.8,127.21,127.13,20.0]
[1740723815600,0.14216157,127.2,127.13,20.0]
[1740723816114,82.8,127.21,127.13,20.0]
[1740723816417,18.79181043,127.2,127.13,20.0]
[1740723816807,0.14216157,127.17,127.13,20.0]
[1740723817003,82.94216157,127.17,127.13,20.0]
[1740723817618,82.8,127.16,127.06,6.2863]
[1740723817817,82.8,127.16,127.09,20.0]
[1740723820607,0.14216157,127.21,127.1,20.0]
[1740723820810,0.03,127.16,127.14,20.0]
[1740723821522,0.03,127.16,127.14,23.2103]
[1740723821716,0.03,127.16,127.15,6.5431]
[1740723822224,0.03,127.16,127.11,10.62]
[1740723822520,0.03,127.16,127.1,6.5431]
[1740723822901,0.03,127.16,127.13,20.0]
[1740723823102,0.03,127.16,127.1,6.5431]
[1740723823302,0.17216157,127.16,127.1,6.5431]
[1740723823521,0.17216157,127.16,127.08,3.2103]
[1740723823728,0.14216157,127.13,127.06,0.063]
[1740723823906,82.8,127.12,127.06,0.063]
[1740723824105,82.8,127.12,127.08,20.0]
[1740723824803,10.58,127.14,127.08,20.0]
[1740723825007,0.03,127.16,127.08,20.0]
[1740723826112,0.03,127.16,127.09,38.64964886]
[1740723827124,0.03,127.16,127.1,0.14216157]
[1740723827329,0.03,127.16,127.15,20.0]
[1740723828528,0.03,127.16,127.08,17.1295]
[1740723828921,0.03,127.16,127.11,20.0]
[1740723829322,0.03,127.16,127.08,17.1295]
[1740723829718,0.03,127.16,127.11,20.0]
[1740723834537,0.03,127.16,127.08,106.90214886]
[1740723834538,0.03,127.16,127.08,88.2525]
[1740723834724,0.03,127.16,127.08,6.6525]
[1740723834725,82.83,127.16,127.08,6.6525]
[1740723835321,82.83,127.16,127.11,20.0]
[1740723836537,82.94216157,127.15,127.11,20.0]
[1740723837541,0.03,127.16,127.11,20.0]
[1740723838843,81.83,127.19,127.11,20.0]
[1740723839044,0.14216157,127.18,127.11,20.0]
[1740723839641,81.83,127.19,127.11,20.0]
[1740723840749,0.14216157,127.18,127.11,20.0]
[1740723841257,81.83,127.19,127.11,30.26]
[1740723841457,81.83,127.26,127.15,20.0]
[1740723841627,92.09,127.26,127.15,20.0]
[1740723841827,10.26,127.26,127.15,20.0]
[1740723842142,18.64964886,127.25,127.15,20.0]
[1740723842351,10.26,127.26,127.11,10.26]
[1740723842352,18.64964886,127.23,127.11,10.26]
[1740723842561,81.83,127.22,127.14,20.0]
[1740723842762,81.83,127.25,127.18,20.0]
[1740723843537,81.83,127.28,127.18,20.0]
[1740723843845,18.64964886,127.27,127.2,20.0]
[1740723844146,81.83,127.28,127.2,20.0]
[1740723844358,0.03,127.29,127.24,20.0]
[1740723844660,0.03,127.29,127.26,20.0]
[1740723845443,132.66,127.38,127.3,20.0]
[1740723845746,81.83,127.39,127.32,20.0]
[1740723846834,0.03,127.41,127.32,101.6]
[1740723847047,0.03,127.41,127.34,6.1123]
[1740723847554,0.17216157,127.41,127.34,6.1123]
[1740723847758,18.67964886,127.41,127.34,6.1123]
[1740723847933,18.64964886,127.39,127.34,6.1123]
[1740723848250,81.83,127.4,127.37,20.0]
[1740723848441,0.03,127.41,127.37,20.0]
[1740723849233,18.79181043,127.39,127.37,20.0]
[1740723849434,18.79181043,127.39,127.34,6.1123]
[1740723849745,18.79181043,127.37,127.29,16.5791]
[1740723849970,18.64964886,127.35,127.29,6.3191]
[1740723850337,18.64964886,127.35,127.32,20.0]
[1740723851153,81.83,127.4,127.29,6.3191]
[1740723851363,0.14216157,127.36,127.28,2.9366]
[1740723851646,18.79181043,127.34,127.26,6.409]
[1740723851853,18.64964886,127.34,127.29,20.0]
[1740723852148,0.14216157,127.31,127.26,6.409]
[1740723852351,10.26,127.39,127.26,6.409]
[1740723852536,10.26,127.39,127.29,20.0]
[1740723852537,0.14216157,127.37,127.29,20.0]
[1740723853048,81.83,127.38,127.29,20.0]
[1740723853228,81.83,127.42,127.3,0.14216157]
[1740723853435,18.82181043,127.41,127.33,20.0]
[1740723853636,18.79181043,127.39,127.33,20.0]
[1740723854044,18.64964886,127.39,127.33,20.0]
[1740723854758,0.14216157,127.38,127.33,20.0]
[1740723855048,0.14216157,127.36,127.26,6.409]
[1740723855257,18.79181043,127.34,127.23,3.1421]
[1740723855460,18.79181043,127.32,127.23,3.1421]
[1740723855665,132.5,127.35,127.24,10.24]
[1740723855832,132.5,127.35,127.27,20.0]
[1740723856035,81.83,127.36,127.31,20.0]
[1740723856239,81.83,127.4,127.31,20.0]
[1740723856458,81.83,127.4,127.33,20.0]
[1740723856858,18.79181043,127.39,127.33,20.0]
[1740723857746,0.14216157,127.36,127.33,20.0]
[1740723857958,0.14216157,127.36,127.3,10.24]
[1740723858265,0.14216157,127.34,127.3,10.24]
[1740723858555,0.14216157,127.34,127.28,6.3677]
[1740723858739,18.64964886,127.33,127.28,6.3677]
[1740723859135,18.64964886,127.31,127.23,3.1421]
[1740723859458,18.79181043,127.29,127.25,20.0]
[1740723860154,0.14216157,127.26,127.17,19.8208]
[1740723860336,18.64964886,127.25,127.2,20.0]
[1740723860847,132.48,127.32,127.2,20.0]
[1740723860848,0.14216157,127.3,127.2,20.0]
[1740723861052,0.14216157,127.3,127.2,101.6]
[1740723861354,18.79181043,127.3,127.2,20.0]
[1740723862041,18.79181043,127.28,127.17,19.8208]
[1740723862238,18.79181043,127.26,127.17,19.8008]
[1740723862438,18.79181043,127.26,127.2,20.0]
[1740723863336,18.64964886,127.26,127.2,20.0]
[1740723863958,0.14216157,127.25,127.17,19.8008]
[1740723864446,18.64964886,127.26,127.2,20.0]
[1740723865260,81.83,127.27,127.2,20.0]
[1740723865464,81.83,127.31,127.2,20.0]
[1740723865643,18.79181043,127.29,127.22,20.0]
[1740723867240,18.64964886,127.27,127.2,20.0]
[1740723867442,0.14216157,127.26,127.2,20.0]
[1740723868155,18.64964886,127.27,127.2,20.0]
[1740723868945,81.83,127.31,127.21,0.14216157]
[1740723869151,81.83,127.31,127.24,20.0]
[1740723869364,18.79181043,127.29,127.24,20.0]
[1740723869581,18.79181043,127.29,127.2,20.0]
[1740723869865,0.14216157,127.26,127.17,101.4008]
[1740723870165,18.64964886,127.25,127.2,20.0]
[1740723870363,0.14216157,127.24,127.17,19.8008]
[1740723870664,0.14216157,127.24,127.22,0.063]
[1740723871264,18.64964886,127.25,127.22,0.063]
[1740723871466,81.97216157,127.24,127.22,0.063]
[1740723871764,18.79181043,127.23,127.22,0.063]
[1740723872269,0.14216157,127.23,127.22,0.063]
[1740723873064,0.14216157,127.26,127.22,0.063]
[1740723874665,18.64964886,127.27,127.24,20.0]
[1740723874858,18.64964886,127.27,127.22,0.063]
[1740723875046,0.14216157,127.26,127.22,0.063]
[1740723876972,18.79181043,127.23,127.22,0.063]
[1740723878170,10.1,127.28,127.22,0.063]
[1740723879042,0.14216157,127.26,127.22,0.063]
[1740723879246,18.64964886,127.27,127.22,0.063]
[1740723879453,0.14216157,127.26,127.22,0.063]
[1740723881057,18.64964886,127.25,127.22,0.063]
[1740723881257,0.14216157,127.24,127.22,0.063]
[1740723883070,18.64964886,127.25,127.22,0.063]
[1740723884076,0.14216157,127.24,127.22,0.063]
[1740723885062,101.59181043,127.23,127.22,0.063]
[1740723885376,18.79181043,127.23,127.22,0.063]
[1740723885677,18.79181043,127.22,127.17,0.063]
[1740723886073,151.37181043,127.22,127.17,0.063]
[1740723888882,151.34145626,127.22,127.17,0.063]
[1740723891360,18.79181043,127.2,127.17,0.063]
[1740723891567,18.79181043,127.18,127.17,0.063]
[1740723891773,9.98216157,127.18,127.13,6.4037]
[1740723891971,18.79181043,127.16,127.11,0.063]
[1740723892179,82.8,127.15,127.11,0.063]
[1740723892369,0.14216157,127.13,127.11,0.063]
[1740723892672,18.79181043,127.13,127.11,0.063]
[1740723892856,82.8,127.14,127.11,20.063]
[1740723893264,18.64964886,127.13,127.11,20.063]
[1740723893673,82.8,127.14,127.11,20.063]
[1740723894272,82.8,127.21,127.17,20.0]
[1740723894462,18.64964886,127.19,127.17,20.0]
[1740723894658,82.8,127.2,127.17,20.0]
[1740723894863,82.8,127.26,127.17,20.0]
[1740723895166,82.8,127.25,127.18,20.0]
[1740723895972,82.8,127.25,127.19,2.9236]
[1740723896168,82.8,127.25,127.2,6.0393]
[1740723896884,142.48,127.29,127.23,20.0]
[1740723897185,82.8,127.3,127.23,20.0]
[1740723897668,18.64964886,127.29,127.23,20.0]
[1740723897984,82.8,127.33,127.28,20.0]
[1740723898167,0.03,127.36,127.3,20.0]
[1740723898777,0.03,127.36,127.31,6.169]
[1740723900282,0.03,127.36,127.35,2.9743]
[1740723900765,39.22312186,127.36,127.35,2.9743]
[1740723900970,18.64964886,127.35,127.31,6.169]
[1740723901495,39.22312186,127.36,127.31,6.169]
[1740723901796,82.8,127.35,127.31,6.169]
[1740723902393,18.64964886,127.34,127.31,6.169]
[1740723902968,18.64964886,127.32,127.31,6.169]
[1740723903194,18.64964886,127.3,127.26,6.037]
[1740723903891,18.64964886,127.28,127.26,6.037]
[1740723904078,82.8,127.35,127.26,6.037]
[1740723904273,82.8,127.34,127.29,20.0]
[1740723904489,82.8,127.34,127.3,0.14216157]
[1740723904697,0.03,127.36,127.3,0.14216157]
[1740723904885,0.03,127.36,127.34,26.5926]
[1740723905202,18.67964886,127.36,127.34,26.5926]
[1740723906008,18.67964886,127.36,127.34,6.5926]
[1740723906581,18.64964886,127.34,127.33,3.2086]
[1740723906999,0.03,127.36,127.33,23.2086]
[1740723908093,0.03,127.36,127.33,3.2086]
[1740723908280,18.64964886,127.34,127.3,6.343]
[1740723908991,82.8,127.35,127.33,20.0]
[1740723909193,0.03,127.36,127.33,20.0]
[1740723911209,0.03,127.36,127.34,0.14216157]
[1740723911505,0.03,127.36,127.33,29.84]
[1740723911701,0.03,127.41,127.34,0.14216157]
[1740723911886,0.03,127.41,127.39,20.0]
[1740723912400,0.03,127.41,127.39,29.84]
[1740723912598,0.03,127.41,127.4,0.14216157]
[1740723912991,82.8,127.46,127.4,0.14216157]
[1740723913498,0.03,127.49,127.43,23.36426157]
[1740723914184,0.03,127.49,127.44,0.14216157]
[1740723914389,0.03,127.49,127.46,0.14216157]
[1740723914588,0.03,127.49,127.45,9.84]
[1740723914589,0.03,127.49,127.48,20.14216157]
[1740723915197,0.03,127.49,127.48,26.45476157]
[1740723915404,82.8,127.56,127.49,0.14216157]
[1740723915783,18.64964886,127.55,127.49,0.14216157]
[1740723916310,18.64964886,127.55,127.48,26.3126]
[1740723916486,18.64964886,127.55,127.49,0.14216157]
[1740723917310,18.64964886,127.53,127.48,26.3126]
[1740723917608,18.64964886,127.53,127.49,0.14216157]
[1740723917789,0.03,127.57,127.49,0.14216157]
[1740723917989,0.03,127.57,127.5,3.1229]
[1740723918184,0.03,127.57,127.52,0.14216157]
[1740723918408,18.67964886,127.57,127.51,9.82]
[1740723918715,18.67964886,127.57,127.52,0.14216157]
[1740723919212,18.67964886,127.57,127.54,20.0]
[1740723919512,0.03,127.57,127.55,0.14216157]
[1740723919690,0.03,127.6,127.56,6.68786157]
[1740723920014,0.03,127.6,127.59,20.14216157]
[1740723920315,0.03,127.6,127.59,20.0]
[1740723920721,18.64964886,127.58,127.57,9.82]
[1740723920891,82.8,127.59,127.56,6.5457]
[1740723921501,74.11120038,127.59,127.56,6.5457]
[1740723922213,74.11120038,127.59,127.53,9.82]
[1740723922214,74.11120038,127.58,127.53,9.82]
[1740723922389,74.11120038,127.57,127.51,6.1607]
[1740723922595,74.25336195,127.56,127.46,6.0369]
[1740723922811,74.11120038,127.55,127.46,6.0369]
[1740723923022,74.11120038,127.55,127.49,20.0]
[1740723923199,74.11120038,127.54,127.5,0.14216157]
[1740723923397,74.11120038,127.59,127.54,0.14216157]
[1740723923592,74.11120038,127.59,127.55,6.0369]
[1740723924021,18.64964886,127.58,127.55,6.0369]
[1740723924207,74.11120038,127.57,127.55,6.0369]
[1740723924401,0.03,127.6,127.59,20.0]
[1740723925793,0.03,127.6,127.56,9.82]
[1740723926218,0.03,127.6,127.59,20.0]
[1740723927396,0.03,127.6,127.56,9.82]
[1740723927601,0.03,127.6,127.55,6.0369]
[1740723928206,18.64964886,127.62,127.55,6.0369]
[1740723928605,18.64964886,127.6,127.55,6.0369]
[1740723928800,74.11120038,127.59,127.55,6.0369]
[1740723929214,9.82,127.64,127.57,20.0]
[1740723929215,74.11120038,127.58,127.57,20.0]
[1740723929520,74.11120038,127.58,127.57,20.14216157]
[1740723929893,92.76084924,127.57,127.54,20.0]
[1740723930097,92.76084924,127.57,127.49,1.64602578]
[1740723930293,74.11120038,127.65,127.5,0.14216157]
[1740723930510,18.64964886,127.64,127.52,20.14216157]
[1740723931018,74.11120038,127.63,127.52,20.14216157]
[1740723931199,74.11120038,127.62,127.52,20.14216157]
[1740723932114,74.11120038,127.62,127.57,0.14216157]
[1740723932324,74.11120038,127.62,127.61,20.0]
[1740723932621,0.063,127.66,127.58,9.86]
[1740723932622,74.11120038,127.65,127.58,9.86]
[1740723932817,92.76084924,127.64,127.58,9.86]
[1740723933025,92.76084924,127.64,127.54,12.8074]
[1740723933317,0.14216157,127.61,127.54,2.9474]
[1740723933615,18.64964886,127.59,127.54,2.9474]
[1740723934219,18.64964886,127.57,127.53,6.2628]
[1740723934434,18.64964886,127.55,127.5,9.84]
[1740723934600,74.11120038,127.54,127.5,9.84]
[1740723934796,92.76084924,127.53,127.5,9.84]
[1740723935115,21.70277688,127.64,127.49,9.4594]
[1740723935116,69.25401921,127.52,127.49,9.4594]
[1740723935310,69.25401921,127.51,127.48,0.063]
[1740723935618,69.25401921,127.59,127.5,20.0]
[1740723935802,69.25401921,127.58,127.5,20.0]
[1740723936003,69.25401921,127.57,127.51,0.14216157]
[1740723937002,69.25401921,127.57,127.53,0.14216157]
[1740723937207,69.25401921,127.57,127.56,20.0]
[1740723938009,87.90366807,127.57,127.56,20.0]
[1740723938409,69.25401921,127.63,127.57,0.14216157]
[1740723939724,18.64964886,127.62,127.57,0.14216157]
[1740723940615,18.64964886,127.65,127.57,0.14216157]
[1740723942324,18.64964886,127.65,127.56,20.0]
[1740723942527,69.45918078,127.66,127.56,20.0]
[1740723942528,18.64964886,127.63,127.56,20.0]
[1740723942716,18.64964886,127.61,127.56,20.0]
[1740723942923,18.64964886,127.61,127.57,0.14216157]
[1740723943124,18.64964886,127.61,127.54,0.14216157]
[1740723943932,18.64964886,127.61,127.54,0.20516157]
[1740723944130,18.64964886,127.61,127.56,20.0]
[1740723945046,18.64964886,127.61,127.54,0.063]
[1740723945522,18.64964886,127.61,127.56,20.0]
[1740723946024,18.64964886,127.59,127.56,20.0]
[1740723946228,18.64964886,127.59,127.54,0.063]
[1740723947027,18.64964886,127.59,127.56,20.0]
[1740723947330,69.25401921,127.64,127.57,0.14216157]
[1740723947824,69.25401921,127.64,127.57,20.14216157]
[1740723948429,18.64964886,127.63,127.57,20.14216157]
[1740723948809,18.64964886,127.63,127.57,20.0]
[1740723949017,18.64964886,127.63,127.56,20.0]
[1740723949515,49.63328125,127.64,127.56,20.0]
[1740723950533,48.63328125,127.64,127.56,20.0]
[1740723951618,18.64964886,127.63,127.54,0.063]
[1740723951815,18.64964886,127.61,127.54,9.883]
[1740723952415,18.64964886,127.61,127.57,20.0]
[1740723952831,48.66328125,127.65,127.57,20.0]
[1740723953218,48.66328125,127.65,127.58,20.14216157]
[1740723953534,0.03,127.65,127.62,20.0]
[1740723953736,0.03,127.65,127.64,20.14216157]
[1740723954411,0.03,127.65,127.64,20.0]
[1740723956139,0.03,127.65,127.62,0.14216157]
[1740723956317,0.03,127.65,127.64,20.0]
[1740723956518,0.03,127.65,127.64,20.14216157]
[1740723958536,0.03,127.65,127.64,20.0]
[1740723959036,0.03,127.65,127.64,20.14216157]
[1740723960532,0.03,127.7,127.68,20.0]
[1740723960841,0.03,127.7,127.65,6.20336157]
[1740723960842,0.03,127.7,127.67,9.8]
[1740723961245,0.03,127.7,127.69,20.14216157]
[1740723962034,0.03,127.7,127.69,20.0]
[1740723962824,0.03,127.7,127.67,9.8]
[1740723963020,48.63328125,127.69,127.61,2.9616]
[1740723963248,18.64964886,127.68,127.61,9.4186]
[1740723963425,18.64964886,127.68,127.64,20.0]
[1740723963733,18.64964886,127.68,127.61,9.4186]
[1740723963926,48.63328125,127.67,127.61,9.4186]
[1740723964122,18.64964886,127.66,127.61,9.4186]
[1740723964429,18.64964886,127.64,127.57,3.1777]
[1740723965024,18.64964886,127.64,127.59,20.0]
[1740723965220,18.64964886,127.64,127.6,0.14216157]
[1740723965419,48.63328125,127.65,127.6,0.14216157]
[1740723965638,0.03,127.7,127.64,20.0]
[1740723966646,0.03,127.7,127.65,0.14216157]
[1740723966844,0.03,127.7,127.68,0.14216157]
[1740723968253,0.03,127.7,127.69,1.78598619]
[1740723968740,0.063,127.73,127.72,0.14216157]
[1740723968946,0.063,127.73,127.72,4.93977357]
[1740723969650,0.063,127.73,127.72,3.29646157]
[1740723970434,0.063,127.73,127.72,3.1543]
[1740723970836,0.063,127.73,127.71,6.3613]
[1740723972142,0.063,127.73,127.67,12.7487]
[1740723972351,0.063,127.73,127.68,0.14216157]
[1740723972552,0.063,127.73,127.68,9.8]
[1740723972750,0.063,127.73,127.69,0.14216157]
[1740723973131,0.063,127.73,127.67,12.7487]
[1740723973350,0.063,127.73,127.68,0.14216157]
[1740723973662,0.063,127.73,127.67,12.7487]
[1740723974033,0.063,127.73,127.68,9.8]
[1740723974433,0.063,127.73,127.69,0.14216157]
[1740723975141,0.063,127.73,127.69,1.78584155]
[1740723975349,0.063,127.73,127.69,0.14216157]
[1740723975551,0.063,127.73,127.69,1.78590371]
[1740723975854,0.063,127.73,127.72,0.14216157]
[1740723976034,0.063,127.73,127.72,1.78539918]
[1740723976735,0.03,127.74,127.73,6.74516157]
[1740723977439,0.03,127.74,127.73,8.38828131]
[1740723978556,0.03,127.74,127.73,6.74516157]
[1740723978756,0.03,127.78,127.77,0.14216157]
[1740723979344,0.03,127.78,127.76,29.8]
[1740723979949,0.03,127.78,127.76,9.8]
[1740723980744,0.03,127.78,127.73,6.603]
[1740723981147,0.03,127.78,127.77,0.14216157]
[1740723981356,0.03,127.8,127.78,23.24096157]
[1740723981561,0.03,127.8,127.78,33.04096157]
[1740723982859,0.03,127.8,127.78,9.8]
[1740723983057,0.03,127.8,127.74,9.8]
[1740723983248,0.03,127.8,127.74,11.44337189]
[1740723983448,0.03,127.8,127.75,0.14216157]
[1740723983746,0.03,127.8,127.69,6.58]
[1740723983747,18.67964886,127.79,127.69,6.58]
[1740723983957,18.64964886,127.77,127.69,16.38]
[1740723984153,18.64964886,127.77,127.72,20.0]
[1740723984358,18.64964886,127.77,127.7,0.14216157]
[1740723984559,18.64964886,127.77,127.69,16.38]
[1740723984739,18.64964886,127.77,127.7,0.14216157]
[1740723985070,18.64964886,127.77,127.69,16.38]
[1740723985264,18.64964886,127.77,127.69,9.8]
[1740723985662,18.64964886,127.73,127.67,9.8]
[1740723985962,38.64964886,127.73,127.67,9.8]
[1740723986754,48.77544282,127.72,127.62,1.6443197]
[1740723986941,48.77544282,127.72,127.61,16.1144]
[1740723986942,18.64964886,127.71,127.61,16.1144]
[1740723987265,20.0,127.73,127.65,0.14216157]
[1740723987444,13.9819,127.77,127.65,0.14216157]
[1740723987644,20.0,127.73,127.65,0.14216157]
[1740723988045,67.28293011,127.72,127.61,16.1144]
[1740723988264,18.64964886,127.7,127.61,0.063]
[1740723988460,18.64964886,127.68,127.61,0.063]
[1740723988661,18.64964886,127.66,127.61,0.063]
[1740723988855,18.64964886,127.64,127.61,0.063]
[1740723989466,18.64964886,127.62,127.61,0.063]
[1740723990578,101.44964886,127.67,127.61,0.063]
[1740723990965,82.8,127.66,127.61,0.063]
[1740723991160,18.64964886,127.67,127.61,0.063]
[1740723991356,3.2737,127.69,127.61,0.20516157]
[1740723991549,101.45547688,127.7,127.61,0.20516157]
[1740723991761,18.64964886,127.69,127.61,0.20516157]
[1740723992054,18.64964886,127.69,127.61,0.063]
[1740723992257,18.64964886,127.69,127.61,0.20516157]
[1740723993256,18.64964886,127.7,127.61,0.20516157]
[1740723993577,18.64964886,127.68,127.61,0.063]
[1740723994785,20.0,127.65,127.61,0.063]
[1740723995251,82.8,127.68,127.61,0.063]
[1740723995458,18.64964886,127.66,127.61,0.063]
[1740723996871,18.64964886,127.66,127.61,0.20516157]
[1740723997174,82.83,127.73,127.63,0.14216157]
[1740723997394,0.03,127.73,127.67,0.14216157]
[1740723998264,0.03,127.73,127.67,20.14216157]
[1740723998459,0.03,127.73,127.67,0.14216157]
[1740723998891,0.03,127.73,127.67,20.14216157]
[1740723999555,0.03,127.73,127.67,20.0]
[1740723999755,0.03,127.73,127.66,3.0603]
[1740723999756,18.64964886,127.71,127.66,3.0603]
[1740724000972,18.64964886,127.71,127.66,23.0603]
[1740724001358,18.64964886,127.71,127.67,0.14216157]
[1740724002155,82.8,127.72,127.66,23.0603]
[1740724002361,18.64964886,127.71,127.63,9.94216157]
[1740724002673,101.44964886,127.71,127.63,9.8]
[1740724002868,0.14216157,127.7,127.63,9.8]
[1740724003976,101.44964886,127.71,127.63,9.8]
[1740724004766,0.03,127.73,127.66,20.0]
[1740724004973,0.03,127.73,127.67,0.14216157]
[1740724006159,0.03,127.73,127.66,20.0]
[1740724006667,18.64964886,127.72,127.64,0.14216157]
[1740724007373,18.64964886,127.7,127.63,9.8]
[1740724007579,18.64964886,127.68,127.63,9.8]
[1740724008094,18.64964886,127.66,127.63,9.8]
[1740724008284,18.64964886,127.66,127.59,9.8]
[1740724008965,18.64964886,127.66,127.61,0.063]
[1740724009184,18.64964886,127.64,127.61,0.063]
[1740724009982,38.64964886,127.62,127.61,0.063]
[1740724010175,121.44964886,127.62,127.61,0.063]
[1740724010765,18.79181043,127.61,127.56,0.063]
[1740724010968,18.64964886,127.59,127.56,0.063]
[1740724011985,0.14216157,127.58,127.56,0.063]
[1740724012166,101.44964886,127.57,127.56,0.063]
[1740724012361,101.44964886,127.57,127.54,0.063]
[1740724012362,101.44964886,127.56,127.54,0.063]
[1740724014071,101.44964886,127.55,127.54,0.063]
[1740724015179,18.64964886,127.55,127.54,0.063]
[1740724015775,18.79181043,127.55,127.54,0.063]
[1740724015971,18.64964886,127.55,127.54,0.063]
[1740724018895,18.79181043,127.55,127.54,0.063]
[1740724019089,101.59181043,127.54,127.51,0.063]
[1740724019289,18.79181043,127.52,127.51,0.063]
[1740724019689,0.14216157,127.52,127.51,0.063]
[1740724019887,20.14216157,127.47,127.41,0.063]
[1740724020188,101.44964886,127.46,127.41,0.063]
[1740724020492,18.64964886,127.44,127.41,0.063]
[1740724020887,38.79181043,127.42,127.41,0.063]
[1740724021094,20.0,127.39,127.35,0.063]
[1740724021293,38.64964886,127.39,127.35,0.063]
[1740724021788,18.64964886,127.39,127.35,0.063]
[1740724022302,18.64964886,127.34,127.25,12.17687954]
[1740724022472,82.8,127.33,127.25,12.17687954]
[1740724022872,82.8,127.38,127.26,31.44948563]
[1740724023089,82.8,127.38,127.27,0.14216157]
[1740724023274,82.8,127.42,127.33,0.14216157]
[1740724023475,18.64964886,127.4,127.32,29.8]
[1740724023773,18.64964886,127.4,127.33,0.14216157]
[1740724025494,18.64964886,127.44,127.33,0.14216157]
[1740724025873,18.64964886,127.4,127.32,29.8]
[1740724026697,18.64964886,127.4,127.33,0.14216157]
[1740724027075,18.64964886,127.4,127.32,29.8]
[1740724027275,18.64964886,127.4,127.33,0.14216157]
[1740724027484,18.64964886,127.38,127.29,9.5029]
[1740724027772,20.0,127.41,127.24,9.3169]
[1740724027773,20.0,127.3,127.24,9.3169]
[1740724028581,18.64964886,127.29,127.24,9.3169]
[1740724028779,18.64964886,127.31,127.24,9.3169]
[1740724029593,18.64964886,127.27,127.24,6.2796]